bitfinex/quotes_BTCUSD_20241205
["timestamp","ask_amount","ask_price","bid_price","bid_amount"]
[1733440362515,0.02429984,96187.0,96107.0,0.0516784]
[1733440362516,0.023,96184.0,96107.0,0.0516784]
[1733440362759,0.10633142,96183.0,96125.0,0.05535948]
[1733440362948,0.00059997,96184.0,96161.0,0.00303161]
[1733440363884,0.023,96218.0,96161.0,0.00303161]
[1733440364106,0.10503154,96204.0,96161.0,0.00303161]
[1733440364308,0.00059997,96219.0,96163.0,0.12803154]
[1733440364513,0.00059997,96219.0,96171.0,0.023]
[1733440364720,0.10503154,96218.0,96172.0,0.25009254]
[1733440364933,0.00129924,96217.0,96172.0,0.10503154]
[1733440365128,0.10503154,96216.0,96172.0,0.10503154]
[1733440365340,0.10633078,96215.0,96151.0,0.07452081]
[1733440365505,0.10633078,96215.0,96149.0,0.0654]
[1733440365506,0.10503154,96211.0,96152.0,0.10503154]
[1733440365704,0.10503154,96204.0,96152.0,0.10503154]
[1733440365906,0.10503154,96198.0,96150.0,0.05154531]
[1733440366121,0.0012997,96197.0,96153.0,0.10503154]
[1733440366323,0.10503154,96196.0,96153.0,0.10503154]
[1733440366776,0.10503154,96196.0,96153.0,0.15640433]
[1733440366941,0.10503154,96196.0,96149.0,0.02]
[1733440366942,0.00059997,96213.0,96174.0,0.00311255]
[1733440367177,0.00059997,96213.0,96177.0,0.023]
[1733440367379,0.00059997,96213.0,96176.0,0.05150543]
[1733440367380,0.00059997,96213.0,96178.0,0.10503154]
[1733440367759,0.00059997,96213.0,96178.0,0.15663827]
[1733440367958,0.00129916,96245.0,96178.0,0.10503154]
[1733440368168,0.023,96230.0,96178.0,0.10503154]
[1733440368489,0.10633081,96229.0,96178.0,0.10503154]
[1733440368928,0.10563151,96229.0,96179.0,0.023]
[1733440369162,0.00059997,96229.0,96191.0,0.023]
[1733440369381,0.00059997,96229.0,96193.0,0.023]
[1733440369581,0.00059997,96229.0,96195.0,0.023]
[1733440369743,0.00059997,96229.0,96197.0,0.023]
[1733440369940,0.00189886,96270.0,96198.0,0.10503154]
[1733440370184,0.10503154,96258.0,96198.0,0.10503154]
[1733440370373,0.00129884,96257.0,96199.0,0.023]
[1733440370576,0.10633038,96256.0,96200.0,0.10503154]
[1733440370779,0.10633038,96256.0,96206.0,0.00307586]
[1733440370988,0.10633038,96256.0,96207.0,0.10503154]
[1733440371652,0.00189887,96270.0,96211.0,0.023]
[1733440371814,0.0456,96286.0,96223.0,0.10503154]
[1733440371815,0.00059997,96279.0,96223.0,0.10503154]
[1733440371969,0.10632998,96278.0,96226.0,0.10503154]
[1733440372166,0.10632998,96278.0,96190.0,0.05178483]
[1733440372167,0.10503154,96278.0,96234.0,0.023]
[1733440372376,0.08131133,96278.0,96235.0,0.10503154]
[1733440372578,0.0012984,96277.0,96235.0,0.10503154]
[1733440372792,0.10503154,96276.0,96235.0,0.10503154]
[1733440373014,0.00059997,96277.0,96240.0,0.023]
[1733440373230,0.00059997,96277.0,96241.0,0.10503154]
[1733440373873,0.00059997,96299.0,96241.0,0.10503154]
[1733440374077,0.10503154,96279.0,96241.0,0.10503154]
[1733440374285,0.0012984,96278.0,96241.0,0.10503154]
[1733440374484,0.10503154,96277.0,96220.0,0.023]
[1733440374752,0.00129849,96276.0,96263.0,0.0031751]
[1733440374958,0.00129849,96276.0,96221.0,0.111768]
[1733440374959,0.00129826,96275.0,96221.0,0.10503154]
[1733440375118,0.10503154,96255.0,96177.0,0.05155913]
[1733440375385,0.00059997,96277.0,96212.0,0.05145795]
[1733440375579,0.10503154,96275.0,96232.0,0.00309895]
[1733440375778,0.00059997,96277.0,96232.0,0.00309895]
[1733440375779,0.10633017,96274.0,96232.0,0.00309895]
[1733440376664,0.10503154,96273.0,96233.0,0.10607041]
[1733440376858,0.10590378,96273.0,96233.0,0.10607041]
[1733440377060,0.10590378,96273.0,96233.0,0.00103887]
[1733440377295,0.10503154,96270.0,96232.0,0.00309895]
[1733440377500,0.1096,96340.0,96232.0,0.00309895]
[1733440377501,0.00087224,96335.0,96233.0,0.10503154]
[1733440377718,0.10503154,96307.0,96239.0,0.10503154]
[1733440377958,0.00087224,96306.0,96240.0,0.00103861]
[1733440378173,0.00087224,96306.0,96241.0,0.10607018]
[1733440378174,0.10503154,96305.0,96241.0,0.10607018]
[1733440378393,0.00087224,96304.0,96241.0,0.10607018]
[1733440378591,0.10503154,96303.0,96243.0,0.023]
[1733440378853,0.00087224,96302.0,96247.0,0.07423503]
[1733440379078,0.10503154,96301.0,96249.0,0.07421128]
[1733440379295,0.10503154,96296.0,96250.0,0.00103854]
[1733440379512,0.00087224,96295.0,96237.0,0.00103873]
[1733440379728,0.10503154,96294.0,96238.0,0.10503154]
[1733440379930,0.00087224,96293.0,96239.0,0.00103873]
[1733440380131,0.10503154,96292.0,96240.0,0.10503154]
[1733440380351,0.00087224,96291.0,96266.0,0.00303791]
[1733440380579,0.10503154,96290.0,96266.0,0.00303791]
[1733440380792,0.00087224,96289.0,96266.0,0.00303791]
[1733440381010,0.10503154,96288.0,96266.0,0.00303791]
[1733440381221,0.00087224,96287.0,96266.0,0.00303791]
[1733440381465,0.00087224,96303.0,96266.0,0.00303791]
[1733440381672,0.10503154,96303.0,96267.0,0.10607008]
[1733440381942,0.00059993,96309.0,96275.0,0.10503154]
[1733440382142,0.00059993,96309.0,96270.0,0.1038]
[1733440382143,0.00059993,96309.0,96287.0,0.07489773]
[1733440382364,0.00059993,96309.0,96289.0,0.023]
[1733440382564,0.0474,96360.0,96286.0,0.00313114]
[1733440382565,0.00087224,96400.0,96309.0,0.023]
[1733440382795,0.10503154,96381.0,96314.0,0.023]
[1733440383000,0.10503154,96375.0,96315.0,0.12906941]
[1733440383273,0.10503154,96361.0,96315.0,0.00103787]
[1733440383485,0.0792,96356.0,96286.0,0.00103808]
[1733440383688,0.0792,96356.0,96218.0,1.02305159]
[1733440383689,0.00087224,96355.0,96287.0,0.00103834]
[1733440383891,0.10503154,96332.0,96253.0,0.00103835]
[1733440384063,0.01938262,96355.0,96253.0,0.00103835]
[1733440384064,0.10503154,96324.0,96256.0,0.10503154]
[1733440384322,0.00087224,96323.0,96258.0,0.05103812]
[1733440384532,0.10503154,96322.0,96259.0,0.30577598]
[1733440384749,0.00087224,96321.0,96294.0,0.00314205]
[1733440384949,0.10503154,96320.0,96294.0,0.00314205]
[1733440385179,0.00087224,96319.0,96294.0,0.00314205]
[1733440385401,0.10503154,96318.0,96294.0,0.00314205]
[1733440385605,0.00087224,96317.0,96294.0,0.00314205]
[1733440385860,0.10503154,96316.0,96294.0,0.00314205]
[1733440386076,0.00087224,96315.0,96294.0,0.00314205]
[1733440386300,0.10503154,96314.0,96294.0,0.00314205]
[1733440386984,0.0792,96356.0,96294.0,0.00314205]
[1733440386985,0.00087224,96313.0,96295.0,0.10503154]
[1733440387235,0.13306854,96433.0,96295.0,0.10503154]
[1733440387236,0.08871236,96437.0,96296.0,0.023]
[1733440387430,0.10503154,96359.0,96299.0,0.023]
[1733440387639,0.10503154,96359.0,96307.0,0.05154741]
[1733440387836,0.10503154,96359.0,96311.0,0.05107816]
[1733440388046,0.10503154,96359.0,96313.0,0.0516438]
[1733440388255,0.10503154,96359.0,96309.0,0.023]
[1733440388256,0.10503154,96359.0,96314.0,0.15737984]
[1733440388424,0.10503154,96359.0,96314.0,0.10606945]
[1733440388630,0.10503154,96359.0,96314.0,0.15737984]
[1733440388859,0.00059983,96419.0,96315.0,0.07434423]
[1733440389035,0.10503154,96379.0,96317.0,0.07430099]
[1733440389356,0.10503154,96379.0,96312.0,0.00311557]
[1733440389357,0.10503154,96376.0,96318.0,0.10606938]
[1733440389784,0.10503154,96370.0,96318.0,0.10606938]
[1733440390417,0.10503154,96368.0,96337.0,0.00315097]
[1733440390637,0.10503154,96364.0,96313.0,0.00103798]
[1733440390863,0.10503154,96364.0,96314.0,0.11030605]
[1733440391068,0.10503154,96364.0,96315.0,0.00103801]
[1733440391269,0.10503154,96362.0,96333.0,0.00306279]
[1733440391473,0.10503154,96362.0,96334.0,0.00103785]
[1733440391695,0.10503154,96347.0,96257.0,0.05187391]
[1733440391898,0.10503154,96347.0,96252.0,0.0452]
[1733440391899,0.10503154,96289.0,96252.0,0.0452]
[1733440392128,0.10606939,96288.0,96253.0,0.00103875]
[1733440392325,0.10606939,96288.0,96252.0,0.0452]
[1733440392326,0.09530859,96288.0,96254.0,0.00103876]
[1733440393383,0.09530859,96288.0,96252.0,0.0452]
[1733440394847,0.09530859,96288.0,96252.0,0.04623876]
[1733440395049,0.09530859,96288.0,96253.0,0.00103876]
[1733440395582,0.09530859,96288.0,96252.0,0.0452]
[1733440396687,0.09530859,96288.0,96270.0,0.0003626]
[1733440397256,0.00059983,96323.0,96270.0,0.0003626]
[1733440397469,0.10503154,96314.0,96270.0,0.0003626]
[1733440397679,0.10503154,96312.0,96270.0,0.0003626]
[1733440398154,0.00059983,96342.0,96270.0,0.0003626]
[1733440398155,0.00059983,96342.0,96271.0,0.1060701]
[1733440398371,0.10503154,96335.0,96273.0,0.0476]
[1733440398573,0.10503154,96335.0,96274.0,0.10606987]
[1733440399165,0.10503154,96335.0,96275.0,0.0808]
[1733440399366,0.10503154,96335.0,96276.0,0.10606987]
[1733440399573,0.10503154,96335.0,96277.0,0.05139118]
[1733440399782,0.10503154,96335.0,96279.0,0.05175808]
[1733440399987,0.10503154,96328.0,96279.0,0.10606988]
[1733440400249,0.10503154,96324.0,96278.0,0.01290845]
[1733440400415,0.10503154,96324.0,96279.0,0.0119993]
[1733440400783,0.10503154,96324.0,96280.0,0.00103846]
[1733440401015,0.10503154,96324.0,96281.0,0.15620226]
[1733440401219,0.10503154,96324.0,96294.0,0.00306156]
[1733440402008,0.10503154,96318.0,96279.0,0.01096084]
[1733440402179,0.10503154,96318.0,96275.0,0.0808]
[1733440402180,0.10503154,96318.0,96280.0,0.01290845]
[1733440403134,0.10503154,96318.0,96289.0,0.00306125]
[1733440403446,0.00059983,96349.0,96290.0,0.10606989]
[1733440403647,0.00059983,96349.0,96289.0,0.05443169]
[1733440403648,0.10503154,96336.0,96291.0,0.01096084]
[1733440403874,0.10503154,96326.0,96289.0,0.00306125]
[1733440404083,0.10503154,96319.0,96275.0,0.0808]
[1733440404287,0.10503154,96311.0,96275.0,0.0808]
[1733440404433,0.0017276,96330.0,96275.0,0.0808]
[1733440404434,0.10503154,96308.0,96275.0,0.0808]
[1733440404633,0.10503154,96308.0,96276.0,0.01287626]
[1733440405065,0.10503154,96296.0,96276.0,0.01287626]
[1733440405270,0.10503154,96296.0,96202.0,0.00103867]
[1733440405271,0.10503154,96290.0,96255.0,0.0808]
[1733440405846,0.10503154,96282.0,96255.0,0.08387649]
[1733440406115,0.10503154,96278.0,96225.0,0.0476]
[1733440406305,0.00059983,96328.0,96222.0,6e-05]
[1733440406306,0.023,96270.0,96222.0,6e-05]
[1733440406546,0.10503154,96234.0,96222.0,6e-05]
[1733440407403,0.00059983,96270.0,96222.0,6e-05]
[1733440407615,0.10503154,96256.0,96222.0,6e-05]
[1733440408029,0.10503154,96256.0,96223.0,0.1284]
[1733440408277,0.10503154,96256.0,96224.0,0.00103896]
[1733440408489,0.10503154,96255.0,96224.0,0.00103896]
[1733440408714,0.10503154,96255.0,96233.0,0.00307369]
[1733440409152,0.10503154,96255.0,96223.0,0.1284]
[1733440409400,0.10503154,96254.0,96224.0,0.012846]
[1733440410038,0.10503154,96254.0,96224.0,0.0187171]
[1733440410268,0.10503154,96239.0,96222.0,6e-05]
[1733440410463,0.02359983,96285.0,96222.0,6e-05]
[1733440410464,0.10503154,96225.0,96222.0,6e-05]
[1733440410697,0.10503154,96223.0,96222.0,6e-05]
[1733440413072,0.10503154,96223.0,96179.0,0.0476]
[1733440413323,0.10503154,96214.0,96179.0,0.0476]
[1733440416757,0.10503154,96214.0,96182.0,0.05166059]
[1733440416987,0.10503154,96214.0,96183.0,0.00103956]
[1733440417200,0.10503154,96214.0,96184.0,0.00103956]
[1733440417400,0.10503154,96214.0,96183.0,0.00103956]
[1733440417619,0.10503154,96214.0,96181.0,0.00103951]
[1733440417849,0.10503154,96214.0,96182.0,0.00103956]
[1733440418051,0.10503154,96194.0,96179.0,0.0476]
[1733440418252,0.10503154,96182.0,96178.0,0.5]
[1733440418503,0.10503154,96181.0,96178.0,0.5]
[1733440419303,0.12803154,96181.0,96178.0,0.5]
[1733440420044,0.023,96180.0,96150.0,0.000863]
[1733440420234,0.10503154,96161.0,96150.0,0.000863]
[1733440420466,0.12803154,96161.0,96150.0,0.000863]
[1733440423295,0.12803154,96161.0,96160.0,0.01227402]
[1733440423685,0.10503154,96161.0,96160.0,0.0017208]
[1733440425396,0.00059983,96209.0,96160.0,0.01203096]
[1733440425606,0.10503154,96183.0,96161.0,0.1299]
[1733440427898,0.10503154,96162.0,96160.0,0.0017208]
[1733440428058,0.05665652,96222.0,96160.0,0.0017208]
[1733440428059,0.12803154,96161.0,96160.0,0.0017208]
[1733440428450,0.12803154,96161.0,96160.0,0.01199045]
[1733440428649,0.12803154,96161.0,96160.0,0.0017208]
[1733440429076,0.10503154,96161.0,96160.0,0.0017208]
[1733440429669,0.00059997,96186.0,96160.0,0.0017208]
[1733440429901,0.10503154,96185.0,96161.0,0.048]
[1733440430115,0.10503154,96184.0,96161.0,0.048]
[1733440430317,0.00059997,96219.0,96160.0,0.01215049]
[1733440430318,0.10503154,96170.0,96160.0,0.01215049]
[1733440431951,0.00059997,96224.0,96160.0,0.01215049]
[1733440432251,0.10503154,96201.0,96163.0,0.023]
[1733440432456,0.10503154,96201.0,96166.0,0.023]
[1733440432580,0.10503154,96201.0,96167.0,0.00103963]
[1733440432788,0.10503154,96201.0,96162.0,0.04903963]
[1733440432990,0.10503154,96201.0,96162.0,0.048]
[1733440433416,0.10503154,96186.0,96162.0,0.048]
[1733440433629,0.10503154,96182.0,96162.0,0.048]
[1733440433995,0.00059997,96229.0,96162.0,0.048]
[1733440434342,0.10503154,96204.0,96162.0,0.048]
[1733440435515,0.10503154,96198.0,96162.0,0.048]
[1733440436730,0.10503154,96198.0,96163.0,0.02403981]
[1733440436932,0.10503154,96198.0,96165.0,0.023]
[1733440437132,0.10503154,96198.0,96165.0,0.12907117]
[1733440437644,0.10503154,96198.0,96166.0,0.00103963]
[1733440437964,0.10503154,96198.0,96165.0,0.12907117]
[1733440438579,0.10503154,96198.0,96162.0,0.048]
[1733440438580,0.10503154,96198.0,96163.0,0.023]
[1733440439080,0.10503154,96198.0,96176.0,0.023]
[1733440441273,0.00059997,96209.0,96180.0,0.023]
[1733440441483,0.00173,96210.0,96180.0,0.023]
[1733440441484,0.00173,96210.0,96182.0,0.023]
[1733440441687,0.00173,96210.0,96183.0,0.10607098]
[1733440441829,0.00173,96210.0,96184.0,0.023]
[1733440442035,0.00173,96210.0,96185.0,0.00103944]
[1733440442342,0.00173,96210.0,96184.0,0.023]
[1733440442580,0.00173,96210.0,96186.0,0.023]
[1733440442953,0.10503154,96209.0,96179.0,0.0783]
[1733440443136,0.10503154,96208.0,96185.0,0.00304001]
[1733440444777,0.00059997,96209.0,96186.0,0.12907113]
[1733440445006,0.10503154,96208.0,96187.0,0.01321111]
[1733440445122,0.10503154,96202.0,96179.0,0.0783]
[1733440445533,0.00173,96210.0,96180.0,0.00103974]
[1733440445743,0.10503154,96209.0,96180.0,0.00103974]
[1733440445949,0.00059997,96209.0,96181.0,0.10503154]
[1733440446151,0.00059997,96209.0,96182.0,0.00103943]
[1733440446478,0.00059997,96209.0,96183.0,0.10607097]
[1733440446680,0.00059997,96209.0,96184.0,0.023]
[1733440446886,0.00059997,96229.0,96185.0,0.00103943]
[1733440447094,0.10503154,96228.0,96185.0,0.00103943]
[1733440448020,0.00059997,96229.0,96180.0,0.023]
[1733440448021,0.10503154,96222.0,96180.0,0.023]
[1733440448222,0.10503154,96221.0,96182.0,0.0719]
[1733440448421,0.10503154,96221.0,96184.0,0.023]
[1733440448636,0.0017292,96230.0,96198.0,0.023]
[1733440448843,0.0017292,96230.0,96200.0,0.023]
[1733440449073,0.0017292,96230.0,96203.0,0.1252]
[1733440449209,0.0017292,96230.0,96214.0,0.0763]
[1733440449412,0.00059997,96276.0,96217.0,0.023]
[1733440449691,0.00059997,96276.0,96216.0,0.0489]
[1733440449692,0.10503154,96266.0,96219.0,0.023]
[1733440450014,0.10503154,96275.0,96227.0,0.0489]
[1733440450236,0.10503154,96275.0,96229.0,0.023]
[1733440450407,0.10503154,96275.0,96230.0,0.10607035]
[1733440450637,0.00059997,96279.0,96232.0,0.023]
[1733440450752,0.00059997,96279.0,96231.0,0.05111863]
[1733440450753,0.10503154,96278.0,96234.0,0.023]
[1733440450955,0.10503154,96278.0,96237.0,0.0489]
[1733440451177,0.10503154,96278.0,96238.0,0.12907028]
[1733440451704,0.10503154,96278.0,96240.0,0.023]
[1733440451857,0.10503154,96278.0,96242.0,0.023]
[1733440452066,0.00059997,96279.0,96246.0,0.023]
[1733440452238,0.00059997,96279.0,96237.0,0.0489]
[1733440452239,0.00059997,96299.0,96250.0,0.023]
[1733440452443,0.00059997,96299.0,96252.0,0.023]
[1733440452648,0.00059997,96299.0,96254.0,0.023]
[1733440452850,0.00059997,96299.0,96255.0,0.00103866]
[1733440453312,0.00059997,96299.0,96256.0,0.10503154]
[1733440453592,0.00059997,96299.0,96259.0,0.023]
[1733440453803,0.10503154,96298.0,96261.0,0.023]
[1733440453990,0.10503154,96298.0,96262.0,0.00103859]
[1733440454179,0.10503154,96298.0,96265.0,0.00305562]
[1733440454585,0.10503154,96296.0,96265.0,0.00305562]
[1733440455457,0.10503154,96281.0,96249.0,0.1252]
[1733440455846,0.10503154,96281.0,96257.0,0.00313981]
[1733440456406,0.00059997,96293.0,96257.0,0.00313981]
[1733440456629,0.10503154,96292.0,96258.0,0.00103872]
[1733440456835,0.10503154,96292.0,96257.0,0.00313981]
[1733440457917,0.10503154,96281.0,96249.0,0.1252]
[1733440458029,0.10503154,96281.0,96250.0,0.01252]
[1733440459492,0.10503154,96281.0,96255.0,0.0030929]
[1733440462907,0.10503154,96274.0,96250.0,0.01252]
[1733440463119,0.10503154,96272.0,96249.0,0.1252]
[1733440463335,0.10503154,96272.0,96250.0,0.01252]
[1733440466548,0.10503154,96272.0,96251.0,0.00103885]
[1733440466842,0.10503154,96272.0,96251.0,0.02403885]
[1733440467032,0.00059997,96289.0,96251.0,0.02403885]
[1733440467244,0.000865,96290.0,96253.0,0.023]
[1733440467245,0.10503154,96288.0,96253.0,0.023]
[1733440467372,0.1,96272.0,96263.0,0.023]
[1733440467899,0.1,96272.0,96255.0,0.023]
[1733440468673,0.1,96272.0,96260.0,0.13]
[1733440468853,0.1,96272.0,96261.0,0.023]
[1733440469073,0.05,96272.0,96262.0,0.0491]
[1733440469222,0.05,96272.0,96263.0,0.03552]
[1733440469849,0.05,96272.0,96263.0,0.01252]
[1733440469850,0.10503154,96271.0,96263.0,0.01252]
[1733440470456,0.10503154,96271.0,96260.0,0.13]
[1733440470676,0.10503154,96271.0,96241.0,0.0491]
[1733440471087,0.10563151,96271.0,96241.0,0.0491]
[1733440471287,0.00059997,96271.0,96250.0,0.17]
[1733440471901,0.00059997,96271.0,96251.0,0.02403872]
[1733440472103,0.05,96272.0,96252.0,0.10503154]
[1733440472309,0.05,96272.0,96253.0,0.023]
[1733440472718,0.10503154,96271.0,96251.0,0.023]
[1733440473151,0.10563151,96271.0,96251.0,0.023]
[1733440474638,0.00059997,96271.0,96251.0,0.023]
[1733440474860,0.15,96272.0,96253.0,0.023]
[1733440475017,0.15,96272.0,96253.0,0.00103874]
[1733440475248,0.15,96272.0,96251.0,0.023]
[1733440476048,0.15,96272.0,96262.0,0.82866731]
[1733440476217,0.15,96272.0,96263.0,0.023]
[1733440476416,0.15,96272.0,96265.0,0.023]
[1733440476880,0.15,96272.0,96263.0,0.023]
[1733440477917,0.15,96272.0,96266.0,0.00309106]
[1733440478236,0.15,96272.0,96262.0,0.82864658]
[1733440478237,0.10503154,96271.0,96262.0,0.82864658]
[1733440478361,0.10563151,96271.0,96262.0,0.82864658]
[1733440480920,0.10503154,96270.0,96262.0,0.82864658]
[1733440481134,0.10503154,96263.0,96262.0,0.82864658]
[1733440481654,0.10503154,96263.0,96250.0,0.001728]
[1733440481845,0.10503154,96251.0,96250.0,0.001728]
[1733440482818,0.10503154,96251.0,96198.0,0.0785]
[1733440482819,0.15,96232.0,96198.0,0.0785]
[1733440483085,0.12803154,96251.0,96198.0,0.01018211]
[1733440483086,0.10503154,96216.0,96198.0,0.01018211]
[1733440483279,0.10503154,96209.0,96180.0,0.0785]
[1733440484146,0.10503154,96208.0,96180.0,0.0785]
[1733440484308,0.10503154,96208.0,96170.0,0.00173]
[1733440484714,0.10503154,96202.0,96170.0,0.02036373]
[1733440484921,0.10503154,96201.0,96170.0,0.009753]
[1733440485332,0.10503154,96201.0,96176.0,0.00304884]
[1733440487276,0.00059997,96217.0,96187.0,0.09496846]
[1733440487486,0.00059997,96221.0,96193.0,0.0455]
[1733440487696,0.00059997,96221.0,96194.0,0.12907088]
[1733440488355,0.00059997,96221.0,96200.0,0.00310197]
[1733440488556,0.00059997,96263.0,96201.0,0.00103934]
[1733440488764,0.10503154,96244.0,96200.0,0.00310197]
[1733440488986,0.09689803,96200.0,96193.0,0.0455]
[1733440489385,0.09689803,96200.0,96180.0,0.0008641]
[1733440489666,0.09689803,96200.0,96181.0,0.00794641]
[1733440490548,0.09689803,96200.0,96192.0,0.00314183]
[1733440490786,0.10503154,96199.0,96181.0,0.00794641]
[1733440491263,0.09689803,96200.0,96187.0,0.09496846]
[1733440491501,0.09689803,96200.0,96193.0,0.09496846]
[1733440491705,0.09689803,96200.0,96188.0,0.10607096]
[1733440491706,0.09689803,96200.0,96189.0,0.09496846]
[1733440491907,0.09689803,96200.0,96190.0,0.10503154]
[1733440493285,0.09689803,96200.0,96190.0,0.10607099]
[1733440493477,0.09689803,96200.0,96190.0,0.10503154]
[1733440494113,0.00059997,96250.0,96190.0,0.10503154]
[1733440494114,0.00059997,96250.0,96204.0,0.09496846]
[1733440494317,0.10503154,96249.0,96215.0,0.09496846]
[1733440494524,0.10503154,96249.0,96216.0,0.00103911]
[1733440494857,0.10503154,96249.0,96217.0,0.10607072]
[1733440495075,0.00059997,96263.0,96223.0,0.09496846]
[1733440495291,0.05,96272.0,96223.0,0.09496846]
[1733440495292,0.10503154,96262.0,96224.0,0.12907056]
[1733440496556,0.10503154,96262.0,96216.0,0.00103902]
[1733440496712,0.00059997,96271.0,96191.0,0.1241]
[1733440496713,0.05503154,96268.0,96193.0,0.09496846]
[1733440496921,0.10503154,96240.0,96192.0,0.00103924]
[1733440497148,0.10503154,96240.0,96192.0,0.00103938]
[1733440497365,0.023,96234.0,96193.0,0.01251394]
[1733440497552,0.023,96234.0,96180.0,0.0008641]
[1733440497553,0.023,96226.0,96180.0,0.0008641]
[1733440497752,0.023,96223.0,96180.0,0.0008641]
[1733440498009,0.00059997,96253.0,96180.0,0.0008641]
[1733440498010,0.00059997,96253.0,96189.0,0.09496846]
[1733440498166,0.10503154,96245.0,96192.0,0.09496846]
[1733440498362,0.07803154,96257.0,96180.0,0.02585046]
[1733440498363,0.10503154,96232.0,96180.0,0.0008641]
[1733440498606,0.10503154,96230.0,96181.0,0.11712127]
[1733440498875,0.00103934,96229.0,96181.0,0.11712127]
[1733440499054,0.10503154,96228.0,96182.0,0.03103934]
[1733440499306,0.00103934,96227.0,96182.0,0.03207879]
[1733440499512,0.10503154,96226.0,96183.0,0.01281895]
[1733440499718,0.00103934,96225.0,96184.0,0.00103945]
[1733440499931,0.10503154,96224.0,96184.0,0.00103945]
[1733440500155,0.00103934,96223.0,96185.0,0.05117077]
[1733440500363,0.10503154,96222.0,96186.0,0.00103946]
[1733440500570,0.10503154,96222.0,96193.0,0.023]
[1733440500738,0.00059997,96223.0,96187.0,0.00559429]
[1733440500739,0.00059997,96223.0,96206.0,0.023]
[1733440500941,0.00059997,96223.0,96207.0,0.0010392]
[1733440501152,0.00059997,96223.0,96208.0,0.0010392]
[1733440501536,0.00059997,96264.0,96209.0,0.05161445]
[1733440501792,0.10503154,96253.0,96211.0,0.05403934]
[1733440501996,0.00103934,96252.0,96213.0,0.023]
[1733440502166,0.10503154,96251.0,96214.0,0.00103913]
[1733440502341,0.00103934,96250.0,96214.0,0.00103913]
[1733440502526,0.10503154,96249.0,96214.0,0.00103913]
[1733440502730,0.00103934,96248.0,96212.0,0.0789]
[1733440502933,0.10503154,96246.0,96212.0,0.0789]
[1733440503145,0.00103934,96245.0,96212.0,0.0789]
[1733440503346,0.10503154,96244.0,96212.0,0.0789]
[1733440503544,0.00103934,96243.0,96213.0,0.00789]
[1733440503749,0.00103934,96243.0,96225.0,0.0030913]
[1733440503985,0.00059997,96245.0,96237.0,0.03103934]
[1733440504337,0.00059997,96245.0,96242.0,0.0711]
[1733440504539,0.0017292,96270.0,96243.0,0.00103883]
[1733440504759,0.10503154,96269.0,96243.0,0.00103883]
[1733440505000,0.10503154,96269.0,96241.0,0.03103934]
[1733440505001,0.10607088,96269.0,96241.0,0.03103934]
[1733440505181,0.10503154,96252.0,96220.0,0.0481]
[1733440505396,0.10503154,96247.0,96198.0,0.0481]
[1733440505605,0.00103934,96246.0,96199.0,0.00103927]
[1733440505738,0.10503154,96245.0,96213.0,0.00789]
[1733440505947,0.00103934,96244.0,96213.0,0.00789]
[1733440506152,0.10503154,96243.0,96213.0,0.00789]
[1733440506355,0.10503154,96243.0,96225.0,0.00304756]
[1733440506623,0.00163931,96268.0,96226.0,0.00103911]
[1733440506842,0.10607088,96267.0,96228.0,0.0481]
[1733440507046,0.00103934,96267.0,96230.0,0.05180081]
[1733440507259,0.00103934,96267.0,96229.0,0.10607037]
[1733440507260,0.00103934,96267.0,96232.0,0.0516134]
[1733440507458,0.00103934,96267.0,96233.0,0.10607037]
[1733440507581,0.10503154,96268.0,96236.0,0.023]
[1733440507795,0.10503154,96268.0,96238.0,0.023]
[1733440508013,0.10503154,96268.0,96239.0,0.00103883]
[1733440508636,0.10503154,96268.0,96228.0,0.0481]
[1733440508637,0.10607088,96267.0,96229.0,0.00103883]
[1733440509065,0.10503154,96262.0,96228.0,0.0481]
[1733440509279,0.00103934,96261.0,96228.0,0.0481]
[1733440509482,0.10503154,96260.0,96228.0,0.0481]
[1733440509599,0.00103934,96259.0,96228.0,0.0481]
[1733440509809,0.10503154,96258.0,96228.0,0.0481]
[1733440510015,0.00103934,96257.0,96240.0,0.00305688]
[1733440510221,0.10503154,96256.0,96240.0,0.00305688]
[1733440510464,0.00103934,96255.0,96240.0,0.00305688]
[1733440510665,0.10503154,96254.0,96240.0,0.00305688]
[1733440510879,0.00059997,96255.0,96240.0,0.00305688]
[1733440511054,0.00059997,96255.0,96241.0,0.001039]
[1733440511405,0.00059997,96255.0,96240.0,0.00305688]
[1733440511650,0.10503154,96254.0,96240.0,0.00305688]
[1733440512645,0.00059997,96271.0,96240.0,0.00305688]
[1733440512860,0.00059997,96269.0,96241.0,0.12907043]
[1733440513060,0.10503154,96268.0,96242.0,0.01321273]
[1733440513259,0.10503154,96268.0,96240.0,0.00305688]
[1733440513876,0.00059997,96269.0,96241.0,0.10503154]
[1733440514027,0.00059997,96271.0,96259.0,0.82862432]
[1733440515150,0.10503154,96269.0,96260.0,0.82875361]
[1733440515347,0.10563151,96269.0,96260.0,0.82875361]
[1733440516072,0.10503154,96261.0,96260.0,0.82875361]
[1733440516283,0.12803154,96261.0,96260.0,0.82875361]
[1733440516498,0.12803154,96261.0,96182.0,0.05166059]
[1733440516499,0.023,96260.0,96191.0,0.0833]
[1733440516712,0.10503154,96233.0,96191.0,0.0833]
[1733440516912,0.10503154,96233.0,96192.0,0.00103947]
[1733440517116,0.10503154,96233.0,96207.0,0.00309477]
[1733440517318,0.0768,96262.0,96208.0,0.00103925]
[1733440517424,0.10503154,96232.0,96207.0,0.00309477]
[1733440521509,0.10503154,96223.0,96174.0,0.0782]
[1733440521657,0.10503154,96212.0,96187.0,0.00304517]
[1733440522267,0.0813,96222.0,96156.0,0.0782]
[1733440522268,0.10503154,96204.0,96156.0,0.0782]
[1733440522508,0.10503154,96204.0,96157.0,0.00103978]
[1733440522889,0.10503154,96204.0,96200.0,0.0008643]
[1733440523095,0.10503154,96202.0,96200.0,0.0008643]
[1733440526361,0.10503154,96201.0,96200.0,0.0008643]
[1733440526564,0.12803154,96201.0,96200.0,0.0008643]
[1733440526765,0.12803154,96201.0,96150.0,0.000863]
[1733440526766,0.0516,96200.0,96150.0,0.000863]
[1733440526979,0.10503154,96181.0,96150.0,0.000863]
[1733440529408,0.10503154,96181.0,96170.0,0.00173]
[1733440531400,0.10503154,96181.0,96180.0,0.0003641]
[1733440533899,0.10503154,96181.0,96180.0,0.01118063]
[1733440534104,0.10503154,96181.0,96180.0,0.0003641]
[1733440534315,0.10503154,96181.0,96180.0,0.01118031]
[1733440534527,0.10503154,96181.0,96180.0,0.0003641]
[1733440534990,0.10503154,96181.0,96180.0,0.01118045]
[1733440535193,0.11553469,96181.0,96180.0,0.01118045]